Workbook

Sheet MSU
B1: Taneli Lampinen | E1: 27.2.1984
B2: SUPERPESIS | E2: Runkosarja | I2: Kärkilyönnit (KL), pesänvälit | P2: Ylempi loppusarja | W2: Alempi loppusarja | AD2: Arvo-ottelut | AH2: Mitalit
B3: Vuosi | C3: Sija | D3: Seura | E3: OTT | F3: KUN | G3: LÖI | H3: TOI | I3: KL | J3: 0 > 1 | K3: 1 > 2 | L3: 2 > 3 | M3: 3 > k | N3: KL-% | P3: OTT | Q3: KUN | R3: LÖI | S3: TOI | T3: KL | U3: KL-% | W3: OTT | X3: KUN | Y3: LÖI | Z3: TOI | AA3: KL | AB3: KL-% | AD3: IL | AE3: LL | AF3: hSM | AG3: K | AH3: H | AI3: P
B4: 2001 | C4: 7. | D4: KuKu | F4: suomensarja
B5: 2002 | C5: 8. | D5: KuKu | F5: suomensarja
B6: 2003 | C6: 5. | D6: AA | F6: ykköspesis
B7: 2004 | D7: AA | F7: poikien superpesis | W7: 1 | X7: 0 | Y7: 0 | Z7: 0 | AA7: 2 | AB7: 40.0 %
B8: 2005 | C8: 8. | D8: AA 2 | F8: suomensarja
B9: 2006
B10: 2007 | C10: 5. | D10: VM | F10: ykköspesis
B11: 2008 | C11: 11. | D11: VM | F11: ykköspesis
B12: 2009
B13: 2010 | C13: 3. | D13: VM | F13: ykköspesis
B14: Yhteensä | E14: 0 | F14: 0 | G14: 0 | H14: 0 | I14: 0 | J14: 0 | K14: 0 | L14: 0 | M14: 0 | P14: 0 | Q14: 0 | R14: 0 | S14: 0 | T14: 0 | U14: 0.0 % | W14: 1 | X14: 0 | Y14: 0 | Z14: 0 | AA14: 2 | AB14: 40.0 % | AD14: 0 | AE14: 0 | AF14: 0 | AG14: 0 | AH14: 0 | AI14: 0
B15: Pesispörssi | D15: 0.0
B17: URA SUPERISSA | E17: OTT | F17: KUN | G17: LÖI | H17: TOI | I17: KL | K17: ka/L | L17: ka/T | M17: ka/KL | N17: KL-% | P17: ENSIMMÄISET RUNKOSARJASSA
B18: Runkosarja | P18: Ottelu
B19: Ylempi loppusarja | P19: Lyöty
B20: Alempi loppusarja | E20: 1 | F20: 0 | G20: 0 | H20: 0 | I20: 2 | K20: 0.00 | L20: 0.00 | M20: 2.00 | N20: 40.0 % | O20: 5 | P20: Tuotu
B21: KAIKKI | E21: 1 | F21: 0 | G21: 0 | H21: 0 | I21: 2 | K21: 0.00 | L21: 0.00 | M21: 2.00 | N21: 40.0 % | O21: 5 | P21: Kunnari
B23: Seurat | D23: KuKu = Kuortaneen Kunto (1921), kasvattajaseura
D24: AA = Alajärven Ankkurit (1944)
D25: VM = Vaasan Maila (1933)

Sheet MYP, MSS
B1: Taneli Lampinen | E1: 27.2.1984
B2: YKKÖSPESIS | E2: Runkosarja | L2: Runkosarja TOP-10 | Q2: Jatkosarjat | X2: SUOMENSARJA | AA2: Runkosarja | AH2: Runkosarja TOP-10 | AM2: Jatkosarjat
B3: Vuosi | C3: Sija | D3: Seura | E3: OTT | F3: KUN | G3: LÖI | H3: TOI | I3: KL | J3: KL-% | L3: LÖI | M3: TOI | N3: L+T | O3: KL | Q3: OTT | R3: KUN | S3: LÖI | T3: TOI | U3: KL | V3: KL-% | X3: Vuosi | Y3: Sija | Z3: Seura | AA3: OTT | AB3: KUN | AC3: LÖI | AD3: TOI | AE3: KL | AF3: KL-% | AH3: LÖI | AI3: TOI | AJ3: L+T | AK3: KL | AM3: OTT | AN3: KUN | AO3: LÖI | AP3: TOI | AQ3: KL | AR3: KL-%
X4: 2001 | Y4: 7. | Z4: KuKu | AA4: 2 | AB4: 0 | AC4: 0 | AD4: 0 | AE4: 3 | AF4: 33.3 % | AG4: 9
X5: 2002 | Y5: 8. | Z5: KuKu | AA5: 13 | AB5: 2 | AC5: 2 | AD5: 10 | AE5: 42 | AF5: 56.0 % | AG5: 75
B6: 2003 | C6: 5. | D6: AA | E6: 8 | F6: 0 | G6: 1 | H6: 1 | I6: 12 | J6: 41.4 % | K6: 29 | Q6: 2 | R6: 0 | S6: 0 | T6: 0 | U6: 2 | V6: 28.6 % | W6: 7
X8: 2005 | Y8: 8. | Z8: AA 2 | AA8: 12 | AB8: 2 | AC8: 6 | AD8: 9 | AE8: 49 | AF8: 61.3 % | AG8: 80
B10: 2007 | C10: 5. | D10: VM | E10: 21 | F10: 0 | G10: 2 | H10: 3 | I10: 26 | J10: 27.4 % | K10: 95 | Q10: 2 | R10: 0 | S10: 0 | T10: 0 | U10: 2 | V10: 22.2 % | W10: 9
B11: 2008 | C11: 11. | D11: VM | E11: 20 | F11: 0 | G11: 2 | H11: 3 | I11: 36 | J11: 37.1 % | K11: 97 | Q11: 2 | R11: 0 | S11: 0 | T11: 0 | U11: 3 | V11: 30.0 % | W11: 10
B13: 2010 | C13: 3. | D13: VM | E13: 6 | F13: 0 | G13: 1 | H13: 1 | I13: 11 | J13: 36.7 % | K13: 30
B14: YHTEENSÄ | E14: =SUM(E4:E13) -> 55 | F14: =SUM(F4:F13) -> 0 | G14: =SUM(G4:G13) -> 6 | H14: =SUM(H4:H13) -> 8 | I14: =SUM(I4:I13) -> 85 | J14: =PRODUCT(I14/K14) -> 33.9 % | K14: =SUM(K4:K13) -> 251 | Q14: =SUM(Q4:Q13) -> 6 | R14: =SUM(R4:R13) -> 0 | S14: =SUM(S4:S13) -> 0 | T14: =SUM(T4:T13) -> 0 | U14: =SUM(U4:U13) -> 7 | V14: =PRODUCT(U14/W14) -> 26.9 % | W14: =SUM(W4:W13) -> 26 | X14: YHTEENSÄ | AA14: =SUM(AA4:AA13) -> 27 | AB14: =SUM(AB4:AB13) -> 4 | AC14: =SUM(AC4:AC13) -> 8 | AD14: =SUM(AD4:AD13) -> 19 | AE14: =SUM(AE4:AE13) -> 94 | AF14: =PRODUCT(AE14/AG14) -> 57.3 % | AG14: =SUM(AG4:AG13) -> 164 | AM14: =SUM(AM4:AM13) -> 0 | AN14: =SUM(AN4:AN13) -> 0 | AO14: =SUM(AO4:AO13) -> 0 | AP14: =SUM(AP4:AP13) -> 0 | AQ14: =SUM(AQ4:AQ13) -> 0 | AR14: 0.0 % | AS14: =SUM(AS4:AS13) -> 0
B16: KAIKKI OTTELUT | E16: OTT | F16: KUN | G16: LÖI | H16: TOI | I16: KL | J16: KL-% | L16: ka/L | M16: ka/T | N16: ka/l+t | O16: ka/kl | R16: Seurat | T16: KuKu = Kuortaneen Kunto (1921), kasvattajaseura
B17: SUPERPESIS | E17: 1 | F17: 0 | G17: 0 | H17: 0 | I17: 2 | J17: 40.0 % | K17: =PRODUCT(I17/J17) -> 5 | L17: =PRODUCT((F17+G17)/E17) -> 0.00 | M17: =PRODUCT(H17/E17) -> 0.00 | N17: =PRODUCT((F17+G17+H17)/E17) -> 0.00 | O17: =PRODUCT(I17/E17) -> 2.00 | T17: AA = Alajärven Ankkurit (1944)
B18: YKKÖSPESIS | E18: =PRODUCT(E14+Q14) -> 61 | F18: =PRODUCT(F14+R14) -> 0 | G18: =PRODUCT(G14+S14) -> 6 | H18: =PRODUCT(H14+T14) -> 8 | I18: =PRODUCT(I14+U14) -> 92 | J18: =PRODUCT(I18/K18) -> 33.2 % | K18: =PRODUCT(K14+W14) -> 277 | L18: =PRODUCT((F18+G18)/E18) -> 0.10 | M18: =PRODUCT(H18/E18) -> 0.13 | N18: =PRODUCT((F18+G18+H18)/E18) -> 0.23 | O18: =PRODUCT(I18/E18) -> 1.51 | T18: VM = Vaasan Maila (1933)
B19: SUOMENSARJA | E19: =PRODUCT(AA14+AM14) -> 27 | F19: =PRODUCT(AB14+AN14) -> 4 | G19: =PRODUCT(AC14+AO14) -> 8 | H19: =PRODUCT(AD14+AP14) -> 19 | I19: =PRODUCT(AE14+AQ14) -> 94 | J19: =PRODUCT(I19/K19) -> 57.3 % | K19: =PRODUCT(AG14+AS14) -> 164 | L19: =PRODUCT((F19+G19)/E19) -> 0.44 | M19: =PRODUCT(H19/E19) -> 0.70 | N19: =PRODUCT((F19+G19+H19)/E19) -> 1.15 | O19: =PRODUCT(I19/E19) -> 3.48
B20: YHTEENSÄ | E20: =SUM(E17:E19) -> 89 | F20: =SUM(F17:F19) -> 4 | G20: 14 | H20: 27 | I20: 188 | J20: =PRODUCT(I20/K20) -> 42.2 % | K20: =SUM(K17:K19) -> 446 | L20: =PRODUCT((F20+G20)/E20) -> 0.20 | M20: =PRODUCT(H20/E20) -> 0.30 | N20: =PRODUCT((F20+G20+H20)/E20) -> 0.51 | O20: =PRODUCT(I20/E20) -> 2.11
